Cogmind - Beta 9.6 @@@ ROGUE MODE // 2020.06.02 @ 22:30:39 Player: Demise Result: Destroyed by 8R-AWN with 8R-AWN's Boregun Performance ------------- Evolutions (1) 500 Regions Visited (5) 1000 Robots Destroyed (44) 220 Value Destroyed (810) 810 Prototype IDs (5) 100 Alien Tech Used (0) 0 Bonus (-228) -228 TOTAL SCORE: 2402 Bonus ------- Friendly Fire -228 Cogmind --------- Core Integrity 0/400 Matter 47/300 Energy 100/100 System Corruption 4% Temperature Cool (0) Movement Core (900) Ox17 Location -9/Exiles Parts ------- > --- POWER (1) -------- Cooled Ion Engine > --- PROPULSION (3) --- (None) > --- UTILITY (3) ------ Medium Storage Unit Large Storage Unit Large Storage Unit > --- WEAPON (2) ------- Minigun Minigun > --- INVENTORY (20) --- Medium Storage Unit Visual Processing Unit Sensor Array Signal Interpreter Reclamation Unit Advanced Beam Cannon Faulty Advanced Beam Cannon Minigun Plasma Cutter Peak State ------------ > --- POWER ------------ Cooled Ion Engine > --- PROPULSION ------- Light Treads Light Treads Light Treads > --- UTILITY ---------- Large Storage Unit Large Storage Unit Light Armor Plating > --- WEAPON ----------- Minigun Minigun > --- INVENTORY -------- Cooled Ion Engine Wheel Medium Storage Unit Medium Storage Unit Visual Processing Unit Sensor Array Signal Interpreter Reclamation Unit Improved Medium Laser Advanced Beam Cannon Advanced Beam Cannon Improved Assault Rifle Minigun Grenade Launcher Plasma Cutter [Rating: 18] Favorites ----------- Power Cooled Ion Engine Engine Cooled Ion Engine Propulsion Light Treads Treads Light Treads Leg Aluminum Leg Wheel Wheel Utility Large Storage Unit Device Reclamation Unit Storage Large Storage Unit Processor Targeting Computer Protection Light Armor Plating Weapon Light Assault Rifle Energy Gun Small Laser Energy Cannon Advanced Beam Cannon Ballistic Gun Light Assault Rifle Launcher Grenade Launcher Build | -11 -10 -10 -9 -9 -9 ------- Run | Scr Mat Min Mat Min Exi Slots Evolved 2 | . . . 2 . . Power . | . . . . . . Propulsion 1 | . . . 1 . . Utility 1 | . . . 1 . . Weapon . | . . . . . . Parts Attached 40 | 1 11 . 17 2 9 Power 5 | . 2 . 2 . 1 Engine 5 | . 2 . 2 . 1 Core . | . . . . . . Reactor . | . . . . . . Propulsion 8 | . 4 . 3 . 1 Treads 4 | . 1 . 3 . . Leg 2 | . 2 . . . . Wheel 2 | . 1 . . . 1 Hover . | . . . . . . Flight . | . . . . . . Utility 9 | 1 2 . 5 . 1 Device 1 | . . . 1 . . Storage 6 | 1 2 . 2 . 1 Processor 1 | . . . 1 . . Hackware . | . . . . . . Protection 1 | . . . 1 . . Artifact . | . . . . . . Weapon 18 | . 3 . 7 2 6 Energy Gun 4 | . 2 . 1 . 1 Energy Cannon 1 | . . . . . 1 Ballistic Gun 11 | . 1 . 6 1 3 Ballistic Cannon . | . . . . . . Launcher 2 | . . . . 1 1 Special Weapon . | . . . . . . Impact Weapon . | . . . . . . Slashing Weapon . | . . . . . . Piercing Weapon . | . . . . . . Special Melee Weapon . | . . . . . . Unidentified Prototypes 3 | . . . 1 . 2 Parts Lost 15 | . 1 . 4 1 9 Power 2 | . 1 . . . 1 Propulsion 5 | . . . 1 1 3 Utility 2 | . . . 1 . 1 Weapon 6 | . . . 2 . 4 Highest Loss Streak 9 | . 1 . 3 1 9 Average Slot Usage (%) 92 | . 96 100 91 88 74 Engine 11 | . 11 14 11 11 10 Treads 16 | . 5 14 25 22 14 Leg 6 | . 17 . . . . Wheel 4 | . 5 14 2 . . Storage 24 | . 28 28 22 22 22 Protection 3 | . . . 5 11 6 Energy Gun 6 | . 8 14 5 . 1 Ballistic Gun 18 | . 19 14 16 22 18 Naked Turns . | . . . . . . Heaviest Build 49 | 15 31 31 49 49 49 Greatest Support 60 | 20 20 20 60 60 40 Greatest Overweight (x) 3 | . 1 1 3 1 1 Average Overweight (x) . | . . 1 . . 1 Largest Inventory Capacity 20 | 8 14 14 16 16 20 Average Capacity 12 | 6 8 14 14 16 16 Most Carried 16 | 6 10 10 16 16 16 Average Carried 11 | 6 7 10 13 16 14 Final Capacity 20 | 8 14 14 16 16 20 Final Carried 16 | 6 10 10 16 16 9 Class Distribution -------------------- 90% | Mutant 9% | Scavenger-Mutant Dominant Class ---------------- Mutant | -10/Materials Mutant | -10/Mines Mutant | -9/Materials Mutant | -9/Mines Mutant | -9/Exiles Resources | -11 -10 -10 -9 -9 -9 ----------- Run | Scr Mat Min Mat Min Exi Matter Collected 761 | 220 165 . 271 105 . Remotely . | . . . . . . Salvage Created 1287 | 83 517 . 561 107 19 Parts 79 | 3 35 . 33 8 . Haulers Intercepted 4 | . 2 . 2 . . Recyclers Shooed 1 | . 1 . . . . Parts Field Recycled . | . . . . . . Retrieved Matter . | . . . . . . Parts Self-Destructed . | . . . . . . Prevented . | . . . . . . Kills | -11 -10 -10 -9 -9 -9 ------- Run | Scr Mat Min Mat Min Exi Combat Hostiles Destroyed 34 | . 13 . 9 6 6 Guns 28 | . 13 . 8 2 5 AOE 6 | . . . 1 4 1 Classes Destroyed 9 | 1 5 . 2 . 1 Worker 1 | . 1 . . . . Hauler 4 | . 2 . 2 . . Recycler 2 | 1 1 . . . . Watcher 3 | . 1 . 2 . . Swarmer 13 | . 9 . . 4 . Grunt 11 | . 4 . 5 2 . Brawler 1 | . . . 1 . . Sentry 3 | . . . 3 . . Assembled 6 | . . . . . 6 Best Kill Streak 6 | 1 6 . 3 6 6 Combat Bots Only 6 | . 5 . 3 6 6 Max Kills in Single Turn 4 | 1 2 . 2 4 1 Gunslinging 1 | . . . 1 1 . Exploded 4 | . . . 1 4 1 Melee . | . . . . . . Uniques/NPCs Destroyed . | . . . . . . Combat | -11 -10 -10 -9 -9 -9 -------- Run | Scr Mat Min Mat Min Exi Damage Taken 2843 | . 532 . 676 249 1386 Core 465 | . 64 . 93 11 297 Absorbed by Shields . | . . . . . . Core Remaining (%) 87 | 100 . 74 . . . Volleys Fired 136 | 5 59 . 45 5 22 Largest 2 | 2 2 . 2 2 2 Hottest 81 | 40 60 . 63 55 81 Shots Fired 262 | 10 118 . 90 9 35 Gun 257 | 10 118 . 90 7 32 Cannon . | . . . . . . Launcher 5 | . . . . 2 3 Special . | . . . . . . Kinetic 202 | 10 97 . 62 7 26 Thermal 41 | . 21 . 14 . 6 Explosive 5 | . . . . 2 3 Electromagnetic 14 | . . . 14 . . Robot Hit Streak 14 | 2 10 . 14 10 9 Robot Miss Streak 9 | 3 9 . 4 1 2 Penetration Max . | . . . . . . Secondary Targets 9 | . 7 . 1 1 . Max Gunslinging Chain 1 | . 1 . 1 1 . Shots Hit Robots 177 | 5 73 . 69 5 25 Core Hits 82 | 3 34 . 21 9 15 Critical Hits 1 | . . . 1 . . Critical Kills . | . . . . . . Critical Parts Destroyed 1 | . . . 1 . . Melee Attacks . | . . . . . . Impact . | . . . . . . Slashing . | . . . . . . Piercing . | . . . . . . Sneak Attacks . | . . . . . . Combat Hostiles . | . . . . . . Follow-up Attacks . | . . . . . . Damage Inflicted 2543 | 39 605 . 957 285 657 Guns 1987 | 39 605 . 891 86 366 Cannons . | . . . . . . Explosions 556 | . . . 66 199 291 Melee . | . . . . . . Ramming . | . . . . . . Kinetic 1497 | 39 448 . 613 86 311 Thermal 410 | . 157 . 198 . 55 Explosive 490 | . . . . 199 291 Electromagnetic 146 | . . . 146 . . Impact . | . . . . . . Slashing . | . . . . . . Piercing . | . . . . . . Highest Corruption 4 | . . . 4 4 4 Average Corruption 3 | . . . 3 4 4 Corruption Purged . | . . . . . . Effects 31 | . . . 21 5 5 Message Errors 5 | . . . 3 2 . Matter Fused 7 | . . . 4 1 2 Heat Flow Errors 6 | . . . 6 . . Energy Discharges 1 | . . . . . 1 Parts Rejected 1 | . . . 1 . . Data Loss (minor) 4 | . . . 2 1 1 Targeting Errors 6 | . . . 5 . 1 Weapon Failures 1 | . . . . 1 . Overload Shots . | . . . . . . Overflow Damage 4 | . . . . 4 . Projectiles . | . . . . . . Explosions 4 | . . . . 4 . Melee . | . . . . . . Knockbacks . | . . . . . . Impact . | . . . . . . Kinetic . | . . . . . . Secondary . | . . . . . . Self-Inflicted Damage 66 | . . . 36 30 . Shots 2 | . . . 1 1 . Rammed . | . . . . . . Targets Rammed . | . . . . . . Kicked . | . . . . . . Crushed . | . . . . . . Highest Temperature 249 | . 40 . 249 34 48 Average Temperature 35 | . 12 . 51 19 17 Received Heat Transfer 642 | . 117 . 267 78 180 Siege Activations . | . . . . . . Robots Corrupted . | . . . . . . Combat Hostiles . | . . . . . . Parts Fried . | . . . . . . Impact Corruptions . | . . . . . . Robots Melted . | . . . . . . Combat Hostiles . | . . . . . . Parts Melted 1 | . . . 1 . . Heat Transferred 888 | . 350 . 400 . 138 Parts Sabotaged . | . . . . . . Parts Stolen . | . . . . . . Parts Stripped . | . . . . . . Power Chain Reactions 1 | . . . 1 . . Missiles Intercepted . | . . . . . . Alert | -11 -10 -10 -9 -9 -9 ------- Run | Scr Mat Min Mat Min Exi Peak Influence 305 | 5 305 91 299 209 . Average Influence 156 | 3 160 91 162 200 . Maximum Alert Level 1 | . 1 . 1 1 . Low Security (%) 62 | 100 56 100 73 6 . Level 1 37 | . 43 . 26 93 . Level 2 . | . . . . . . Level 3 . | . . . . . . Level 4 . | . . . . . . Level 5 . | . . . . . . High Security . | . . . . . . Max Security . | . . . . . . Squads Dispatched 2 | . 1 . 1 . . Investigation . | . . . . . . Extermination . | . . . . . . Reinforcement 2 | . 1 . 1 . . Assault . | . . . . . . Garrison . | . . . . . . Intercept . | . . . . . . Construction Impeded . | . . . . . . Haulers Reinforced . | . . . . . . Stealth | -11 -10 -10 -9 -9 -9 --------- Run | Scr Mat Min Mat Min Exi Distress Signals 2 | . 2 . . . . Communications Jammed . | . . . . . . Distress Signals . | . . . . . . Times Spotted 61 | . 27 . 18 8 8 Peak Tracking Total 9 | . 7 . 4 7 9 Tactical Retreats 4 | . 1 . 1 2 . Traps | -11 -10 -10 -9 -9 -9 ------- Run | Scr Mat Min Mat Min Exi Traps Triggered . | . . . . . . Indirectly . | . . . . . . Trap Hack Attempts . | . . . . . . Triggered . | . . . . . . Disarmed . | . . . . . . Reprogrammed . | . . . . . . Reused . | . . . . . . Traps Extracted . | . . . . . . Installed . | . . . . . . Triggered 2 | . . . . 2 . Machines | -11 -10 -10 -9 -9 -9 ---------- Run | Scr Mat Min Mat Min Exi Machines Disabled 7 | . . . 2 2 3 Max in Single Turn 2 | . . . 1 2 1 Machines Sabotaged . | . . . . . . Garrisons Compromised . | . . . . . . Overloaded Fab Kills . | . . . . . . Fab Network Shutdowns . | . . . . . . Hacking | -11 -10 -10 -9 -9 -9 --------- Run | Scr Mat Min Mat Min Exi Machines Accessed 7 | . 4 . 3 . . Terminals 7 | . 4 . 3 . . Fabricators . | . . . . . . Repair Stations . | . . . . . . Recycling Units . | . . . . . . Scanalyzers . | . . . . . . Garrison Access . | . . . . . . Total Hacks 23 | . 14 . 9 . . Successful 12 | . 7 . 5 . . Failed 11 | . 7 . 4 . . Catastrophic . | . . . . . . Database Lockouts . | . . . . . . Manual 14 | . 8 . 6 . . Terminals 23 | . 14 . 9 . . Fabricators . | . . . . . . Repair Stations . | . . . . . . Recycling Units . | . . . . . . Scanalyzers . | . . . . . . Garrison Access . | . . . . . . Terminal Hacks 6 | . 5 . 1 . . Part Schematic 1 | . 1 . . . . Prototype ID Bank 1 | . 1 . . . . Branch Access Points 1 | . . . 1 . . Locate Traps 1 | . 1 . . . . Hauler Manifests 1 | . 1 . . . . Registered Components 1 | . 1 . . . . Fabricator Hacks . | . . . . . . Repair Station Hacks . | . . . . . . Recycling Unit Hacks . | . . . . . . Scanalyzer . | . . . . . . Garrison Access Hacks . | . . . . . . Unauthorized Hacks 6 | . 2 . 4 . . Terminals 6 | . 2 . 4 . . Track 2 | . 1 . 1 . . Botnet 3 | . 1 . 2 . . Operators 1 | . . . 1 . . Fabricators . | . . . . . . Repair Stations . | . . . . . . Recycling Units . | . . . . . . Scanalyzers . | . . . . . . Garrison Access . | . . . . . . Data Cores Recovered . | . . . . . . Used . | . . . . . . Hacking Detections 7 | . 4 . 3 . . Full Trace Events . | . . . . . . Feedback Events . | . . . . . . Feedback Blocked . | . . . . . . Robot Schematics Acquired . | . . . . . . Robots Built . | . . . . . . Matter . | . . . . . . Time . | . . . . . . Total Robot Build Rating . | . . . . . . Part Schematics Acquired 1 | . 1 . . . . Parts Built . | . . . . . . Matter . | . . . . . . Time . | . . . . . . Total Part Build Rating . | . . . . . . Parts Repaired . | . . . . . . Time . | . . . . . . Parts Recycled . | . . . . . . Recycled Matter . | . . . . . . Retrieved Matter . | . . . . . . Retrieved Components . | . . . . . . Parts Scanalyzed . | . . . . . . Part Schematics Acquired . | . . . . . . Parts Damaged . | . . . . . . Bothacking | -11 -10 -10 -9 -9 -9 ------------ Run | Scr Mat Min Mat Min Exi Used RIF Installer . | . . . . . . Robots Hacked . | . . . . . . Non-combat . | . . . . . . Combat . | . . . . . . Robot Hacks Applied . | . . . . . . Relay Couplers Released . | . . . . . . Robots Rewired . | . . . . . . Allies Hacked . | . . . . . . Hacks Repelled . | . . . . . . Allies | -11 -10 -10 -9 -9 -9 -------- Run | Scr Mat Min Mat Min Exi Total Allies . | . . . . . . Largest Group . | . . . . . . Highest-Rated Group . | . . . . . . Highest-Rated Ally . | . . . . . . Total Orders . | . . . . . . Ally Attacks . | . . . . . . Total Damage . | . . . . . . Kills . | . . . . . . Allies Corrupted . | . . . . . . Allies Melted . | . . . . . . Intel | -11 -10 -10 -9 -9 -9 ------- Run | Scr Mat Min Mat Min Exi Robot Analysis Total . | . . . . . . Derelict Logs Recovered 1 | . . 1 . . . Drone Launches . | . . . . . . Drone Recoveries . | . . . . . . Exploration | -11 -10 -10 -9 -9 -9 ------------- Run | Scr Mat Min Mat Min Exi Turns Passed 2260 | 41 796 204 822 248 149 Spaces Moved 1136 | 23 433 114 390 128 48 Core . | . . . . . . Treads 820 | . 152 114 378 128 48 Legs 304 | 23 281 . . . . Wheels 12 | . . . 12 . . Hover . | . . . . . . Flight . | . . . . . . Fastest Speed 110 | 120 120 180 110 160 180 Average Speed 155 | 120 136 180 161 179 180 Slowest Speed 180 | 120 180 180 180 180 180 Overloaded Moves . | . . . . . . Propulsion Burnouts . | . . . . . . Robots Hopped . | . . . . . . Cave-ins Triggered . | . . . . . . Exploration Rate (%) 33 | 3 71 45 33 30 20 Regions Visited 5 Branch Regions 3 Pre-discovered Areas . | . . . . . . Known Exits Taken 1 | . . . 1 . . Unknown Exits Taken 4 | 1 1 1 . 1 . Scrap Searched . | . . . . . . Spaces Dug . | . . . . . . Terrain Destroyed 28 | . . . 2 10 16 Melee . | . . . . . . Projectile . | . . . . . . AOE 28 | . . . 2 10 16 Actions | -11 -10 -10 -9 -9 -9 --------- Run | Scr Mat Min Mat Min Exi Total 1400 | 28 543 113 499 137 80 Wait 55 | . 24 . 28 3 . Move 1131 | 22 432 113 389 127 48 Hop . | . . . . . . Pick Up 17 | . 7 . 10 . . Fast Attach 10 | 1 1 . 8 . . Attach 16 | . 3 . 5 . 8 Detach 3 | . . . 2 . 1 Swap 14 | . 7 . 4 2 1 Drop 18 | . 10 . 8 . . Fire 136 | 5 59 . 45 5 22 Melee . | . . . . . . Ram . | . . . . . . Kick . | . . . . . . Crush . | . . . . . . Escape Stasis . | . . . . . . Rewire . | . . . . . . Trap . | . . . . . . Miscellaneous . | . . . . . . Route ------- -11/Scrapyard -10/Materials (discovered 4 exits: *Mat x3 / [*Min]) -10/Mines -9/Materials -9/Mines -9/Exiles History --------- Turn | Location | Event 14 | -11/Scrapyard | Discovered new exit (range 3) 42 | -11/Scrapyard | Entered Materials 319 | -10/Materials | Discovered new exit (range 15) 455 | -10/Materials | Discovered new exit (range 3) 641 | -10/Materials | Discovered new exit (range 5) 661 | -10/Materials | Discovered new exit (range 16) 740 | -10/Materials | Build established: Mutant 838 | -10/Materials | Entered Mines 842 | -10/Mines | Met a Derelict bent on vengeance 887 | -10/Mines | Learned 2 Materials zone layouts 952 | -10/Mines | Discovered new exit (range 14) 1042 | -10/Mines | Entered Materials 1042 | -9/Materials | Evolved 2 slots: Propulsion x1, Utility x1 1268 | -9/Materials | Lost 3 parts (1n1u1w) 1619 | -9/Materials | Identified exit to Mines 1864 | -9/Materials | Entered Mines 2103 | -9/Mines | Deemed a non-threat by the Exiles lab entrance 2105 | -9/Mines | Discovered new exit (range 5) 2112 | -9/Mines | Entered Exiles 2157 | -9/Exiles | Met 8R-AWN 2188 | -9/Exiles | Met EX-HEX 2202 | -9/Exiles | Attacked by the Exiles 2215 | -9/Exiles | Core integrity fell below 50% 2238 | -9/Exiles | Core integrity fell below 20% 2261 | -9/Exiles | Destroyed by 8R-AWN with 8R-AWN's Boregun Last Messages --------------- 02227_ Cld. Ion Engine permanently disabled. 02227_ Malfunction: Power surge. 02228_ Penetrated by HV Slug. 02228_ Minigun destroyed. 02229_ Identified Imp. Medium Laser. 02230_ as-42477 destroyed. 02230_ Penetrated by HV Slug. 02232_ Destroyed Asb. F-torch. 02233_ System corrupted: Matter fused (-10). 02233_ Penetrated by HV Slug. 02233_ HV Slug penetrates Machine. 02234_ as-96058 destroyed. 02235_ Penetrated by HV Slug. 02244_ Imp. Medium Laser destroyed. 02246_ Penetrated by HV Slug. 02250_ Machine disabled. 02251_ HV Slug penetrates Machine. 02253_ Penetrated by HV Slug. 02253_ HV Slug penetrates Wall. 02257_ Penetrated by HV Slug. Map ----- +----------------------------------------------------+ | ?????????????????????????????????????????????????? | | ?????????????????????????????????????????????????? | | ?????????????????????????????????????????????????? | | ?????????????????????????????????????????????????? | | ?????????????????????????????????????????????????? | | ?????????????????????????????????????????????????? | | ?????????????????????????????????????????????????? | | ?????????????????????????????????????????????????? | | ?????????????????????????????????????????????????? | | ?????????????????????????????????????????????????? | | ?????????????????????????????????????????????????? | | ?????????????????????????????????????????????????? | | ?????????????????????????????????????????????????? | | ???????????????????"""?"#????????????????????????? | | ?????????????? " """ """"????????????????????????? | | ?????????????? "" " ????????????????????????? | | ????????????? " """???????????????????????? | | ????????????? "a"#???????????#####??????? | | ???????????? " "##?????????##" #??????? | | ???????????? ""###???????#" #??????? | | ???????????? ""#??????##" ##?????? | | ??????????? "#????### ###???? | | ???????????" ##???# ##### | | ???????????" !! ##?## #""" | | ?????????? !!!!! #;# | | ?????????? !!%@! g ## | | ??????????" !!%*!% #### | | ?????????? !!!% "#?#"""""#### | | ??????????? #"""##?#######??# | | ??????????? ######???????????? | | ???????????? ##????????????????? | | ???????????? " #?????????????????? | | ???????????? """ #?????????????????? | | ????????????? " ""#" #?????????????????? | | ???????????????????##" " ###?????????????????? | | ????????????????????## ##???????????????????? | | ?????????????????????## #????????????????????? | | ??????????????????????#######????????????????????? | | ?????????????????????????????????????????????????? | | ?????????????????????????????????????????????????? | | ?????????????????????????????????????????????????? | | ?????????????????????????????????????????????????? | | ?????????????????????????????????????????????????? | | ?????????????????????????????????????????????????? | | ?????????????????????????????????????????????????? | | ?????????????????????????????????????????????????? | | ?????????????????????????????????????????????????? | | ?????????????????????????????????????????????????? | | ?????????????????????????????????????????????????? | | ?????????????????????????????????????????????????? | +----------------------------------------------------+ Best States ------------- Heat Dissipation 28 Energy Generation 14 Energy Capacity 280 Matter Stores 300 Matter Capacity 300 Sight Range 16 Terrain Scan Density 10 Armor Coverage 150 Reclamation Efficiency 10 Evasion (%) 40 Targeting Accuracy 5 Recoil Reduction 3 Item Schematics ----------------- Hcp. Storage Unit | -10/Materials | Hacked Robot Schematics ------------------ None Fabricated ------------ Nothing Alien Tech Used ----------------- None Achievements -------------- None Challenges ------------ None Game ------ Seed IonicUtilityTorch Manual? 0 Play Time 00:22:59 Cumulative 216.6 hours Start 2020.06.02 @ 22:10:35 End 2020.06.02 @ 22:30:39 Sessions 1 Manual Loads 0 Difficulty Rogue Special Mode None Game No. 282 Rogue 271 Adventurer 11 Explorer 0 Win Type - Total 0 Types 0/0/0/0/0/0/0 Lore% 52 Gallery% 66 Achievement% 45 Wizard Run 0 Options --------- ASCII 0 Keyboard 1 Movement Numpad Keybinds 0 Fullscreen 1 Font 12/Terminus Map View 83x54 Tactical HUD 1 Map Filters NONE Filters NONE Steam 1 RUN: a038c74e-ba9d-4098-9c1b-4d4d2e204ca6